bitfinex/quotes_BTCUSD_20250618
["timestamp","ask_amount","ask_price","bid_price","bid_amount"]
[1750252788370,6.37024309,104230.0,104220.0,22.00669864]
[1750252788603,7.07024309,104230.0,104220.0,22.00669864]
[1750252789033,7.02024309,104230.0,104220.0,22.00669864]
[1750252789255,7.07024309,104230.0,104220.0,22.00669864]
[1750252789915,7.08526743,104230.0,104220.0,21.92687472]
[1750252790350,7.07024309,104230.0,104220.0,21.92687472]
[1750252790562,7.02024309,104230.0,104220.0,21.92687472]
[1750252790767,7.07024309,104230.0,104220.0,21.92687472]
[1750252791202,7.77024309,104230.0,104220.0,21.92687472]
[1750252791406,7.07024309,104230.0,104220.0,21.92687472]
[1750252793425,7.08526755,104230.0,104220.0,21.92687472]
[1750252794088,7.08526755,104230.0,104220.0,21.95747472]
[1750252794307,6.89580782,104230.0,104220.0,21.98777472]
[1750252794541,6.84724782,104230.0,104220.0,21.98777472]
[1750252794756,7.06508782,104230.0,104220.0,21.98770319]
[1750252795231,7.08342052,104230.0,104220.0,21.98770319]
[1750252795455,6.85225519,104230.0,104220.0,21.98770319]
[1750252795719,7.02001519,104230.0,104220.0,21.98770319]
[1750252795942,7.08826789,104230.0,104220.0,21.98770319]
[1750252796165,7.03826789,104230.0,104220.0,21.98770319]
[1750252796613,7.08826789,104230.0,104220.0,21.98770319]
[1750252797063,7.08822789,104230.0,104220.0,21.98770319]
[1750252797522,7.01989519,104230.0,104220.0,21.98770319]
[1750252797750,6.31989519,104230.0,104220.0,21.98770319]
[1750252798209,6.10225519,104230.0,104220.0,21.98770319]
[1750252798700,8.86485519,104230.0,104220.0,21.98770319]
[1750252799336,8.69537519,104230.0,104220.0,21.98770319]
[1750252799587,8.86485519,104230.0,104220.0,21.98770319]
[1750252800024,8.86485519,104230.0,104220.0,21.97207961]
[1750252800284,8.41645519,104230.0,104220.0,21.97207961]
[1750252800532,8.86477519,104230.0,104220.0,21.97207961]
[1750252801857,8.81477519,104230.0,104220.0,21.97207961]
[1750252802075,8.86477519,104230.0,104220.0,21.97207961]
[1750252802283,8.81477519,104230.0,104220.0,21.97207961]
[1750252802489,9.56477519,104230.0,104220.0,21.97337961]
[1750252802700,9.58310789,104230.0,104220.0,21.97337961]
[1750252802914,9.56489519,104230.0,104220.0,21.97337961]
[1750252803121,9.58322789,104230.0,104220.0,21.97337961]
[1750252803382,9.36554789,104230.0,104220.0,21.97337961]
[1750252803593,9.53326789,104230.0,104220.0,21.97337961]
[1750252803801,9.56493519,104230.0,104220.0,21.97337961]
[1750252804497,9.51493519,104230.0,104220.0,21.97337961]
[1750252804708,9.56493519,104230.0,104220.0,21.97337961]
[1750252804910,9.58326789,104230.0,104220.0,21.97337961]
[1750252805535,9.56493519,104230.0,104220.0,21.97337961]
[1750252805738,9.56477519,104230.0,104220.0,21.97337961]
[1750252806157,9.53310789,104230.0,104220.0,21.97337961]
[1750252806374,9.58310789,104230.0,104220.0,21.97337961]
[1750252807010,9.56477519,104230.0,104220.0,21.97337961]
[1750252807643,9.54474336,104230.0,104220.0,21.97337961]
[1750252808073,9.56307606,104230.0,104220.0,21.97337961]
[1750252808484,9.54474336,104230.0,104220.0,21.97337961]
[1750252809306,9.49474336,104230.0,104220.0,21.97337961]
[1750252809510,9.54474336,104230.0,104220.0,21.97337961]
[1750252809929,9.54446336,104230.0,104220.0,21.95775573]
[1750252810134,9.32718336,104230.0,104220.0,21.95775573]
[1750252810337,9.54446336,104230.0,104220.0,21.95775573]
[1750252810934,9.49446336,104230.0,104220.0,21.95775573]
[1750252811172,9.54446336,104230.0,104220.0,21.95775573]
[1750252811378,9.56450751,104230.0,104220.0,21.95775573]
[1750252811590,9.50250751,104230.0,104220.0,21.95775573]
[1750252811805,9.61411888,104230.0,104220.0,21.95775573]
[1750252812021,9.62511888,104230.0,104220.0,21.95775573]
[1750252812227,9.35787888,104230.0,104220.0,21.95775573]
[1750252812436,9.6217404,104230.0,104220.0,21.95775573]
[1750252812654,9.6217404,104230.0,104220.0,21.95875573]
[1750252812655,8.9277404,104230.0,104220.0,21.95875573]
[1750252812875,8.7587004,104230.0,104220.0,21.95875573]
[1750252813095,8.6917004,104230.0,104220.0,21.95775573]
[1750252813310,8.6957004,104230.0,104220.0,21.95875573]
[1750252813519,8.7057004,104230.0,104220.0,21.95875573]
[1750252813752,8.64255633,104230.0,104220.0,21.95875573]
[1750252813974,8.63753625,104230.0,104220.0,21.95875573]
[1750252814209,8.63353625,104230.0,104220.0,21.95775573]
[1750252814419,8.84081625,104230.0,104220.0,21.95775573]
[1750252814849,8.84981625,104230.0,104220.0,21.95775573]
[1750252815953,8.63353625,104230.0,104220.0,21.95875573]
[1750252816158,8.85081625,104230.0,104220.0,21.95875573]
[1750252817455,8.63353625,104230.0,104220.0,21.95875573]
[1750252817660,8.85077625,104230.0,104220.0,21.95875573]
[1750252820275,8.86579914,104230.0,104220.0,21.95875573]
[1750252822961,8.69655914,104230.0,104220.0,21.95875573]
[1750252823165,8.85077625,104230.0,104220.0,21.95875573]
[1750252823595,8.85065625,104230.0,104220.0,21.95875573]
[1750252824316,8.65076525,104230.0,104220.0,21.95875573]
[1750252824511,8.65080525,104230.0,104220.0,21.95875573]
[1750252824947,8.48160525,104230.0,104220.0,21.95875573]
[1750252825177,8.63160525,104230.0,104220.0,21.95875573]
[1750252825508,8.63160525,104230.0,104220.0,21.93875573]
[1750252825509,7.93160525,104230.0,104220.0,21.93875573]
[1750252825714,8.65076525,104230.0,104220.0,21.93875573]
[1750252825916,8.48160525,104230.0,104220.0,21.93875573]
[1750252826161,8.43364525,104230.0,104220.0,21.93875573]
[1750252826372,8.65068525,104230.0,104220.0,21.93875573]
[1750252826578,6.15568525,104230.0,104220.0,21.93875573]
[1750252827817,6.1734345,104230.0,104220.0,21.93875573]
[1750252828212,5.9563945,104230.0,104220.0,21.93875573]
[1750252828444,6.1732345,104230.0,104220.0,21.93875573]
[1750252829711,6.17323198,104230.0,104220.0,21.93875573]
[1750252832264,6.15548525,104230.0,104220.0,21.93875573]
[1750252832469,6.17323029,104230.0,104220.0,21.93875573]
[1750252833243,1.53700529,104230.0,104220.0,21.93875573]
[1750252833457,6.17323029,104230.0,104220.0,21.90735573]
[1750252833658,6.17323029,104230.0,104220.0,21.87655573]
[1750252833659,6.28711029,104230.0,104220.0,21.87655573]
[1750252833915,6.31442107,104230.0,104220.0,21.87655573]
[1750252834529,6.31442107,104230.0,104220.0,21.8609321]
[1750252834729,6.30564209,104230.0,104220.0,21.8609321]
[1750252835134,6.30563943,104230.0,104220.0,21.8609321]
[1750252835761,6.23813108,104230.0,104220.0,21.8609321]
[1750252836253,5.97141108,104230.0,104220.0,21.8609321]
[1750252836495,5.97141108,104230.0,104220.0,21.9238321]
[1750252836713,6.00434763,104230.0,104220.0,21.9238321]
[1750252836928,6.17330763,104230.0,104220.0,21.9238321]
[1750252837349,6.00434763,104230.0,104220.0,21.9238321]
[1750252837817,6.17327299,104230.0,104220.0,21.9238321]
[1750252838024,5.98660525,104230.0,104220.0,21.9238321]
[1750252838231,6.15552525,104230.0,104220.0,21.9238321]
[1750252838642,6.15544525,104230.0,104220.0,21.9238321]
[1750252838874,5.83256784,104230.0,104220.0,21.9238321]
[1750252839081,6.01919918,104230.0,104220.0,21.9238321]
[1750252839293,5.87917318,104230.0,104220.0,21.9238321]
[1750252839496,5.83121318,104230.0,104220.0,21.9238321]
[1750252839704,6.00013318,104230.0,104220.0,21.9238321]
[1750252840136,5.76937318,104230.0,104220.0,21.9238321]
[1750252840346,4.95595902,104230.0,104220.0,22.01998132]
[1750252840556,0.48865402,104230.0,104220.0,21.9238321]
[1750252840765,0.25808265,104230.0,104220.0,21.9238321]
[1750252841053,0.42696265,104230.0,104220.0,22.33109273]
[1750252841560,0.42596265,104230.0,104220.0,21.9228321]
[1750252841784,0.41696265,104230.0,104220.0,21.9228321]
[1750252842001,0.24808265,104230.0,104220.0,21.9228321]
[1750252842221,0.42259667,104230.0,104220.0,21.9228321]
[1750252842682,0.41659667,104230.0,104220.0,21.9228321]
[1750252842920,0.42159667,104230.0,104220.0,21.95505135]
[1750252843151,0.41959667,104230.0,104220.0,21.94805135]
[1750252843361,0.42159667,104230.0,104220.0,21.95505135]
[1750252843567,0.42159667,104230.0,104220.0,21.9298321]
[1750252843781,0.42155667,104230.0,104220.0,21.9298321]
[1750252845156,0.25271667,104230.0,104220.0,21.9298321]
[1750252845390,0.42147667,104230.0,104220.0,21.9298321]
[1750252845881,0.45929654,104230.0,104220.0,21.9298321]
[1750252846111,0.29053654,104230.0,104220.0,21.9298321]
[1750252846338,0.45925654,104230.0,104220.0,22.02598132]
[1750252846810,0.29053526,104230.0,104220.0,22.43324195]
[1750252847039,0.42121869,104230.0,104220.0,22.57948371]
[1750252847273,0.42121869,104230.0,104220.0,22.17222308]
[1750252847274,0.42125869,104230.0,104220.0,22.17222308]
[1750252847727,0.42125869,104230.0,104220.0,22.07607386]
[1750252847953,0.25269869,104230.0,104220.0,22.48433449]
[1750252848175,0.42121869,104230.0,104220.0,22.48415175]
[1750252848640,0.42120956,104230.0,104220.0,22.48415175]
[1750252848876,0.25268956,104230.0,104220.0,22.58030097]
[1750252849171,0.42116956,104230.0,104220.0,22.58030097]
[1750252849402,0.26154847,104230.0,104220.0,22.58030097]
[1750252849638,0.33873447,104230.0,104220.0,22.58030097]
[1750252849916,0.31502845,104230.0,104220.0,22.58030097]
[1750252850642,0.08208845,104230.0,104220.0,22.54870097]
[1750252850643,0.20502845,104230.0,104220.0,22.51740097]
[1750252850996,0.39691178,104230.0,104220.0,22.51740097]
[1750252851212,0.39687318,104230.0,104220.0,22.51740097]
[1750252852876,0.39687318,104230.0,104220.0,22.11014034]
[1750252853123,0.39687318,104230.0,104220.0,22.01399112]
[1750252853354,0.38801287,104230.0,104220.0,22.01399112]
[1750252853821,0.38798599,104230.0,104220.0,22.01399112]
[1750252854935,0.38770599,104230.0,104220.0,21.86774936]
[1750252855142,0.21958599,104230.0,104220.0,21.86774936]
[1750252855355,0.38766599,104230.0,104220.0,21.86774936]
[1750252856319,0.44986628,104230.0,104220.0,21.86774936]
[1750252856546,0.44986536,104230.0,104220.0,21.86774936]
[1750252856779,0.48770193,104230.0,104220.0,21.86774936]
[1750252857525,0.44986536,104230.0,104220.0,21.86774936]
[1750252857989,0.48770193,104230.0,104220.0,21.86774936]
[1750252858245,5.53770193,104230.0,104220.0,21.86774936]
[1750252858481,5.46586369,104230.0,104220.0,21.86774936]
[1750252858761,5.70110197,104230.0,104220.0,21.86774936]
[1750252859009,5.70109655,104230.0,104220.0,21.86774936]
[1750252859238,5.79434017,104230.0,104220.0,21.86774936]
[1750252859922,5.79404884,104230.0,104220.0,21.86074936]
[1750252860153,5.80004884,104230.0,104220.0,21.86774936]
[1750252862457,5.89484033,104230.0,104220.0,21.86774936]
[1750252862926,6.07740033,104230.0,104220.0,21.86174936]
[1750252863154,6.07740033,104230.0,104220.0,21.86074936]
[1750252863155,6.26975024,104230.0,104220.0,21.86074936]
[1750252863423,5.91007024,104230.0,104220.0,21.86074936]
[1750252863694,0.76810341,104230.0,104220.0,21.86074936]
[1750252863926,0.93810341,104230.0,104220.0,21.86174936]
[1750252864158,0.88950341,104230.0,104220.0,21.88454788]
[1750252864386,0.72050369,104230.0,104220.0,21.86074936]
[1750252864627,0.72150369,104230.0,104220.0,21.86474936]
[1750252864852,0.88346369,104230.0,104220.0,21.86074936]
[1750252865097,0.84972915,104230.0,104220.0,21.86074936]
[1750252865339,0.68076915,104230.0,104220.0,21.86074936]
[1750252865568,0.21457338,104230.0,104220.0,22.00689858]
[1750252865798,0.16884,104230.0,104220.0,22.10314034]
[1750252866032,0.37331731,104230.0,104220.0,22.10314034]
[1750252866514,0.20647731,104230.0,104220.0,22.10814034]
[1750252866746,0.38420999,104230.0,104220.0,22.10814034]
[1750252866973,0.21532999,104230.0,104220.0,22.10814034]
[1750252867213,0.38216999,104230.0,104220.0,22.10314034]
[1750252867452,0.21332999,104230.0,104220.0,22.6699619]
[1750252867688,0.38404999,104230.0,104220.0,22.10914034]
[1750252867922,0.21232999,104230.0,104220.0,22.10314034]
[1750252868149,0.38404999,104230.0,104220.0,22.11114034]
[1750252868386,0.38405213,104230.0,104220.0,22.11114034]
[1750252868617,0.38305213,104230.0,104220.0,22.01299112]
[1750252869090,0.38405213,104230.0,104220.0,22.01799112]
[1750252869321,0.38405213,104230.0,104220.0,21.87174936]
[1750252869550,0.37019731,104230.0,104220.0,21.86074936]
[1750252869829,0.38105146,104230.0,104220.0,21.91774936]
[1750252870057,0.21133149,104230.0,104220.0,22.10814034]
[1750252870286,0.37993149,104230.0,104220.0,22.10814034]
[1750252870517,0.38193149,104230.0,104220.0,22.11414034]
[1750252870743,0.38193176,104230.0,104220.0,22.11414034]
[1750252871216,0.37303731,104230.0,104220.0,21.92174936]
[1750252871698,0.37303731,104230.0,104220.0,21.87174936]
[1750252872157,0.46658731,104230.0,104220.0,21.87174936]
[1750252872654,0.51402731,104230.0,104220.0,21.87174936]
[1750252873352,0.51302731,104230.0,104220.0,21.86674936]
[1750252873827,0.51402731,104230.0,104220.0,21.86874936]
[1750252874065,0.51202731,104230.0,104220.0,21.86274936]
[1750252874352,5.56402731,104230.0,104220.0,21.86874936]
[1750252874605,0.44944731,104230.0,104220.0,21.96489858]
[1750252875137,0.23332731,104230.0,104220.0,21.96489858]
[1750252875402,0.40188731,104230.0,104220.0,21.96489858]
[1750252875843,0.43964895,104230.0,104220.0,21.96489858]
[1750252876744,0.43964895,104230.0,104220.0,21.86874936]
[1750252877856,0.45735558,104230.0,104220.0,21.86874936]
[1750252878077,0.28879558,104230.0,104220.0,21.86874936]
[1750252878293,0.45723558,104230.0,104220.0,21.86874936]
[1750252878533,0.94743558,104230.0,104220.0,21.86874936]
[1750252879443,0.94743558,104230.0,104220.0,21.96489858]
[1750252880136,0.94743558,104230.0,104220.0,21.86874936]
[1750252880408,0.94743651,104230.0,104220.0,21.86874936]
[1750252880646,1.0040383,104230.0,104220.0,21.86874936]
[1750252883157,1.00404902,104230.0,104220.0,21.86874936]
[1750252884224,1.00404902,104230.0,104220.0,21.86774936]
[1750252884456,1.00404902,104230.0,104220.0,21.96389858]
[1750252884710,1.00404902,104230.0,104220.0,21.86774936]
[1750252885630,1.03504902,104230.0,104220.0,21.86774936]
[1750252886069,1.06704902,104230.0,104220.0,21.86774936]
[1750252886698,1.02928738,104230.0,104220.0,21.86774936]
[1750252886903,1.06712643,104230.0,104220.0,21.86774936]
[1750252888634,1.06712633,104230.0,104220.0,21.86774936]
[1750252888856,1.06712633,104230.0,104220.0,21.96389858]
[1750252889317,1.06648633,104230.0,104220.0,21.96389858]
[1750252890275,0.92599059,104230.0,104220.0,21.96389858]
[1750252890559,0.93712241,104230.0,104220.0,21.96389858]
[1750252890781,0.95485017,104230.0,104220.0,21.96389858]
[1750252891466,0.95486251,104230.0,104220.0,21.96389858]
[1750252892335,0.89186251,104230.0,104220.0,21.96389858]
[1750252892552,0.73293326,104230.0,104220.0,22.11014034]
[1750252892774,0.90061326,104230.0,104220.0,22.11014034]
[1750252893392,0.73293326,104230.0,104220.0,22.11014034]
[1750252893643,0.90053326,104230.0,104220.0,22.11014034]
[1750252893904,0.90053326,104230.0,104220.0,22.01399112]
[1750252894128,0.90053326,104230.0,104220.0,21.91774936]
[1750252894129,0.95516251,104230.0,104220.0,21.91774936]
[1750252895550,0.9640424,104230.0,104220.0,21.91774936]
[1750252896855,0.96406344,104230.0,104220.0,21.91774936]
[1750252897518,0.96406344,104230.0,104220.0,22.01389858]
[1750252899029,0.48806834,104230.0,104220.0,22.01389858]
[1750252899268,0.48806834,104230.0,104220.0,21.91774936]
[1750252901508,0.48807156,104230.0,104220.0,21.91774936]
[1750252902007,0.32047156,104230.0,104220.0,21.91774936]
[1750252902248,5.58574979,104230.0,104220.0,21.86774936]
[1750252902470,6.12899886,104230.0,104220.0,21.86774936]
[1750252902914,6.10085116,104230.0,104220.0,21.86774936]
[1750252903174,6.25085116,104230.0,104220.0,21.86774936]
[1750252903626,6.25085116,104230.0,104220.0,21.86174936]
[1750252903627,6.17538976,104230.0,104220.0,21.86174936]
[1750252904061,6.27018125,104230.0,104220.0,21.86174936]
[1750252904294,6.27018125,104230.0,104220.0,21.86114936]
[1750252904533,6.27218125,104230.0,104220.0,21.86614936]
[1750252904769,6.17538976,104230.0,104220.0,21.79464936]
[1750252904990,6.17638976,104230.0,104220.0,21.79564936]
[1750252905212,6.17738976,104230.0,104220.0,21.80164936]
[1750252905430,6.25205681,104230.0,104220.0,21.80064936]
[1750252905657,6.17638976,104230.0,104220.0,21.80064936]
[1750252905871,6.17838976,104230.0,104220.0,21.80164936]
[1750252906537,6.25301762,104230.0,104220.0,21.79564936]
[1750252906760,6.25401762,104230.0,104220.0,21.79964936]
[1750252906992,6.25401762,104230.0,104220.0,21.79564936]
[1750252907197,6.25201762,104230.0,104220.0,21.79464936]
[1750252907425,6.25201762,104230.0,104220.0,21.79864936]
[1750252907426,6.25301762,104230.0,104220.0,21.79864936]
[1750252907640,6.25601762,104230.0,104220.0,21.79864936]
[1750252907842,6.25601762,104230.0,104220.0,21.79464936]
[1750252907843,6.25401762,104230.0,104220.0,21.79464936]
[1750252908056,6.25101762,104230.0,104220.0,21.79464936]
[1750252908303,6.25301762,104230.0,104220.0,21.79964936]
[1750252908526,6.25501762,104230.0,104220.0,21.80064936]
[1750252908749,6.27354942,104230.0,104220.0,21.80064936]
[1750252908971,6.27154942,104230.0,104220.0,21.79964936]
[1750252909399,6.27354942,104230.0,104220.0,21.79964936]
[1750252909619,6.25501762,104230.0,104220.0,21.79964936]
[1750252909849,5.53745762,104230.0,104220.0,21.79964936]
[1750252910100,6.13237762,104230.0,104220.0,21.79464936]
[1750252910323,6.22434976,104230.0,104220.0,21.79764936]
[1750252910538,6.22630976,104230.0,104220.0,21.79764936]
[1750252910755,6.06850062,104230.0,104220.0,21.79764936]
[1750252911024,6.28298062,104230.0,104220.0,21.79764936]
[1750252912143,6.28292895,104230.0,104220.0,21.79764936]
[1750252913988,6.11536895,104230.0,104220.0,21.79764936]
[1750252914217,1.23288895,104230.0,104220.0,21.79764936]
[1750252914434,1.23289477,104230.0,104220.0,21.79764936]
[1750252914685,6.30185177,104230.0,104220.0,21.79764936]
[1750252918228,6.3018496,104230.0,104220.0,21.79764936]
[1750252918655,6.3017296,104230.0,104220.0,21.79764936]
[1750252919785,6.1343296,104230.0,104220.0,21.79764936]
[1750252920007,0.45876981,104230.0,104220.0,21.79764936]
[1750252920219,0.62616981,104230.0,104220.0,21.83278574]
[1750252920440,0.49659075,104230.0,104220.0,21.83278574]
[1750252920666,0.66399075,104230.0,104220.0,21.88278574]
[1750252920909,0.60326092,104230.0,104220.0,21.87978574]
[1750252921169,0.60426092,104230.0,104220.0,21.88378574]
[1750252921384,0.60426092,104230.0,104220.0,21.84864936]
[1750252921385,0.60626092,104230.0,104220.0,21.84864936]
[1750252921613,0.60426092,104230.0,104220.0,21.84464936]
[1750252921831,0.60426092,104230.0,104220.0,21.84864936]
[1750252922060,0.60526092,104230.0,104220.0,21.84864936]
[1750252922502,0.60626092,104230.0,104220.0,21.84964936]
[1750252922969,0.60626092,104230.0,104220.0,21.94579858]
[1750252923398,0.60626092,104230.0,104220.0,21.84964936]
[1750252928616,0.66301115,104230.0,104220.0,21.84964936]
[1750252929558,0.43888132,104230.0,104220.0,21.84964936]
[1750252929776,0.60644132,104230.0,104220.0,21.84964936]
[1750252931410,0.60644763,104230.0,104220.0,21.84964936]
[1750252931876,0.43888763,104230.0,104220.0,21.84964936]
[1750252932114,0.28888763,104230.0,104220.0,21.94579858]
[1750252932343,0.28888763,104230.0,104220.0,22.00899858]
[1750252932586,0.45620763,104230.0,104220.0,21.84964936]
[1750252932817,5.86430598,104230.0,104220.0,21.79964936]
[1750252933054,5.88320401,104230.0,104220.0,21.79964936]
[1750252933273,5.85505631,104230.0,104220.0,21.79964936]
[1750252934039,5.85505883,104230.0,104220.0,21.79964936]
[1750252934709,5.85505883,104230.0,104220.0,21.78464936]
[1750252934710,5.77943097,104230.0,104220.0,21.78464936]
[1750252935596,5.61211097,104230.0,104220.0,21.88015302]
[1750252935815,5.88317858,104230.0,104220.0,21.78464936]
[1750252938040,5.66889858,104230.0,104220.0,21.78464936]
[1750252938272,5.88325858,104230.0,104220.0,21.78464936]
[1750252938685,5.82649373,104230.0,104220.0,21.78464936]
[1750252941317,5.8264986,104230.0,104220.0,21.78464936]
[1750252941790,5.82625878,104230.0,104220.0,21.78464936]
[1750252942226,10.87625878,104230.0,104220.0,21.78464936]
[1750252942869,10.61269702,104230.0,104220.0,21.78464936]
[1750252943089,5.57278234,104230.0,104220.0,21.78464936]
[1750252943305,5.78674234,104230.0,104220.0,21.78464936]
[1750252943986,5.72985702,104230.0,104220.0,21.78464936]
[1750252944450,5.72985908,104230.0,104220.0,21.78464936]
[1750252944689,5.80548694,104230.0,104220.0,21.78464936]
[1750252946345,5.9017287,104230.0,104220.0,21.78464936]
[1750252947949,5.59152694,104230.0,104220.0,21.81059338]
[1750252948167,0.25109908,104230.0,104220.0,21.81059338]
[1750252948386,0.47506199,104230.0,104220.0,21.92349338]
[1750252948609,0.30802199,104230.0,104220.0,21.92349338]
[1750252948838,0.30802199,104230.0,104220.0,21.89754936]
[1750252948839,0.47506199,104230.0,104220.0,21.89754936]
[1750252949286,0.51301583,104230.0,104220.0,21.83464936]
[1750252949544,0.47506199,104230.0,104220.0,21.83464936]
[1750252949969,0.30802199,104230.0,104220.0,21.83464936]
[1750252950189,0.41809908,104230.0,104220.0,21.83464936]
[1750252952170,0.41811953,104230.0,104220.0,21.83464936]
[1750252954627,0.25111953,104230.0,104220.0,21.99419112]
[1750252954834,0.22227486,104230.0,104220.0,22.09034034]
[1750252955032,0.39805259,104230.0,104220.0,22.09034034]
[1750252955240,0.39821259,104230.0,104220.0,22.09034034]
[1750252955650,0.39821259,104230.0,104220.0,21.99419112]
[1750252955861,0.23117259,104230.0,104220.0,21.99419112]
[1750252955994,0.39813259,104230.0,104220.0,21.99419112]
[1750252956199,0.23117266,104230.0,104220.0,21.99419112]
[1750252956424,0.39813266,104230.0,104220.0,21.99419112]
[1750252956850,0.39813266,104230.0,104220.0,22.09034034]
[1750252957053,0.39813266,104230.0,104220.0,22.08934034]
[1750252957249,0.39513266,104230.0,104220.0,22.08534034]
[1750252957660,0.39609266,104230.0,104220.0,22.09034034]
[1750252958077,0.39709266,104230.0,104220.0,22.09234034]
[1750252958248,0.39709266,104230.0,104220.0,21.99619112]
[1750252958452,0.39709266,104230.0,104220.0,21.96499112]
[1750252958659,0.3970892,104230.0,104220.0,21.96499112]
[1750252958838,0.38819486,104230.0,104220.0,21.96499112]
[1750252959034,0.54486476,104230.0,104220.0,21.83664936]
[1750252960465,0.553758,104230.0,104220.0,21.83664936]
[1750252961302,0.386838,104230.0,104220.0,22.02904034]
[1750252961527,0.23683721,104230.0,104220.0,22.09014034]
[1750252962187,0.40351721,104230.0,104220.0,22.09014034]
[1750252962821,0.40350033,104230.0,104220.0,22.09014034]
[1750252963250,0.23682033,104230.0,104220.0,22.09014034]
[1750252963460,0.40350033,104230.0,104220.0,22.09014034]
[1750252965324,0.40350033,104230.0,104220.0,21.93289112]
[1750252965559,0.40349699,104230.0,104220.0,21.93289112]
[1750252965766,0.40349699,104230.0,104220.0,21.96409112]
[1750252966216,0.40349699,104230.0,104220.0,21.99729112]
[1750252966623,0.40329699,104230.0,104220.0,21.99729112]
[1750252966832,0.40329699,104230.0,104220.0,22.08850055]
[1750252967042,0.40328551,104230.0,104220.0,22.08850055]
[1750252967266,0.40328121,104230.0,104220.0,22.08850055]
[1750252968307,0.40328324,104230.0,104220.0,22.05730055]
[1750252968520,0.43212824,104230.0,104220.0,21.93289112]
[1750252969561,0.43212824,104230.0,104220.0,21.96409112]
[1750252969787,0.43212824,104230.0,104220.0,21.93289112]
[1750252970633,0.43212824,104230.0,104220.0,21.96409112]
[1750252971672,0.43212824,104230.0,104220.0,21.99729112]
[1750252971877,0.43212824,104230.0,104220.0,22.09344034]
[1750252971878,0.23015696,104230.0,104220.0,22.09344034]
[1750252972052,0.43163427,104230.0,104220.0,22.02904034]
[1750252972268,0.26515427,104230.0,104220.0,22.02904034]
[1750252972503,0.43159427,104230.0,104220.0,22.02904034]
[1750252973748,0.43160271,104230.0,104220.0,22.13024034]
[1750252974176,0.49670271,104230.0,104220.0,22.02904034]
[1750252974393,0.49670271,104230.0,104220.0,21.83664936]
[1750252975018,0.48781745,104230.0,104220.0,21.83664936]
[1750252975240,0.48781745,104230.0,104220.0,21.78664936]
[1750252975449,5.68781745,104230.0,104220.0,21.78664936]
[1750252975875,5.68781745,104230.0,104220.0,21.88279858]
[1750252976096,5.68781745,104230.0,104220.0,21.78664936]
[1750252976315,5.68781971,104230.0,104220.0,21.78664936]
[1750252977812,5.52137971,104230.0,104220.0,21.78664936]
[1750252978021,5.73413971,104230.0,104220.0,21.78664936]
[1750252978769,5.56071741,104230.0,104220.0,21.78664936]
[1750252979009,5.58957482,104230.0,104220.0,21.78664936]
[1750252980986,5.74746795,104230.0,104220.0,21.78664936]
[1750252981220,5.89746795,104230.0,104220.0,21.78664936]
[1750252981459,5.87968452,104230.0,104220.0,21.78664936]
[1750252981693,5.92562664,104230.0,104220.0,21.78664936]
[1750252981913,5.92562664,104230.0,104220.0,21.77964936]
[1750252982147,5.94515844,104230.0,104220.0,21.71514936]
[1750252982369,5.94515844,104230.0,104220.0,21.62044936]
[1750252982624,5.73239844,104230.0,104220.0,21.62044936]
[1750252982848,6.14871894,104230.0,104220.0,21.62044936]
[1750252983070,6.15071894,104230.0,104220.0,21.62144936]
[1750252983304,6.16925074,104230.0,104220.0,21.62144936]
[1750252983543,6.19739844,104230.0,104220.0,21.62144936]
[1750252983978,6.19738386,104230.0,104220.0,21.62144936]
[1750252984196,6.19738386,104230.0,104220.0,21.62044936]
[1750252984637,6.21640577,104230.0,104220.0,21.62144936]
[1750252984883,6.21440577,104230.0,104220.0,21.62044936]
[1750252985320,6.21740577,104230.0,104220.0,21.49063795]
[1750252985760,6.23792505,104230.0,104220.0,21.49063795]
[1750252985980,6.93792505,104230.0,104220.0,21.49063795]
[1750252986410,6.93792505,104230.0,104220.0,21.45943795]
[1750252986633,6.93121369,104230.0,104220.0,21.45943795]
[1750252986852,6.9227636,104230.0,104220.0,21.31563795]
[1750252987066,7.07275919,104230.0,104220.0,21.31563795]
[1750252987276,7.07275919,104230.0,104220.0,21.18763596]
[1750252987729,7.07275174,104230.0,104220.0,21.18763596]
[1750252987945,7.06575174,104230.0,104220.0,21.18563596]
[1750252988167,7.07175174,104230.0,104220.0,21.18663596]
[1750252988375,7.07575174,104230.0,104220.0,21.15585146]
[1750252988592,7.06975174,104230.0,104220.0,21.12719003]
[1750252988815,7.07375174,104230.0,104220.0,21.12819003]
[1750252989292,7.07875174,104230.0,104220.0,21.12819003]
[1750252989541,7.0787127,104230.0,104220.0,21.12819003]
[1750252989745,6.9661377,104230.0,104220.0,21.01561503]
[1750252990171,6.9861377,104230.0,104220.0,21.01561503]
[1750252990599,6.7231377,104230.0,104220.0,21.01561503]
[1750252990821,6.70779629,104230.0,104220.0,21.01561503]
[1750252991031,6.49090938,104230.0,104220.0,21.01561503]
[1750252991222,6.93482938,104230.0,104220.0,21.01561503]
[1750252991736,6.72162938,104230.0,104220.0,21.01561503]
[1750252991982,6.93483818,104230.0,104220.0,21.01561503]
[1750252992191,6.76795818,104230.0,104220.0,21.01561503]
[1750252992436,6.93475818,104230.0,104220.0,21.01561503]
[1750252992649,6.49087818,104230.0,104220.0,21.01561503]
[1750252992879,6.06795818,104230.0,104220.0,21.01561503]
[1750252993090,6.23471818,104230.0,104220.0,21.01561503]
[1750252993308,6.02159818,104230.0,104220.0,21.01561503]
[1750252993528,6.23471818,104230.0,104220.0,21.04871503]
[1750252993750,6.02159818,104230.0,104220.0,21.08041503]
[1750252993973,6.23471818,104230.0,104220.0,21.08041503]
[1750252994216,6.02159818,104230.0,104220.0,21.08041503]
[1750252994658,6.01360709,104230.0,104220.0,21.07941503]
[1750252994882,6.01035572,104230.0,104220.0,21.07941503]
[1750252995107,5.66507396,104230.0,104220.0,21.07941503]
[1750252995545,5.66508037,104230.0,104220.0,21.08341503]
[1750252996008,5.30172037,104230.0,104220.0,21.13041503]
[1750252996255,5.07200037,104230.0,104220.0,21.13641503]
[1750252996724,0.13457537,104230.0,104220.0,21.32880601]
[1750252996936,0.10572237,104230.0,104220.0,21.32880601]
[1750252997148,0.10572237,104230.0,104220.0,21.23265679]
[1750252997367,0.2652234,104230.0,104220.0,21.22565679]
[1750252997598,0.2642234,104230.0,104220.0,21.22565679]
[1750252997815,0.2728599,104230.0,104220.0,21.23465679]
[1750252998217,0.0991034,104230.0,104220.0,21.23465679]
[1750252998456,0.27286,104230.0,104220.0,21.23465679]
[1750252998668,0.10574,104230.0,104220.0,21.23465679]
[1750252998878,0.27306,104230.0,104220.0,21.2511391]
[1750252999059,0.27306,104230.0,104220.0,21.23465679]
[1750252999319,0.27305998,104230.0,104220.0,21.23465679]
[1750252999588,0.2664234,104230.0,104220.0,21.23465679]
[1750252999780,0.27305996,104230.0,104220.0,21.23465679]
[1750253000421,0.27305996,104230.0,104220.0,21.13841503]
[1750253000843,0.30573996,104230.0,104220.0,21.25564788]
[1750253001057,0.27281996,104230.0,104220.0,21.23465679]
[1750253001256,0.27289996,104230.0,104220.0,21.23465679]
[1750253002323,0.2662634,104230.0,104220.0,21.23465679]
[1750253002595,0.3298375,104230.0,104220.0,21.23465679]
[1750253002804,0.27290085,104230.0,104220.0,21.23465679]
[1750253003633,0.28175097,104230.0,104220.0,21.23465679]